fUST/lending_fUST_20250920
["ID","MTS","AMOUNT","RATE_DAILY","PERIOD"]
[386504003,1758324639524,-250.49551392,0.00026336,2]
[386504004,1758324639534,-500.0,0.00026336,2]
[386504005,1758324639543,-151.0,0.00026336,2]
[386504006,1758324639552,-151.0,0.00026336,2]
[386504007,1758324639562,-500.0,0.00026384,2]
[386504008,1758324639571,-524.33,0.00026477,2]
[386504009,1758324639582,-480.0,0.00026478,2]
[386504010,1758324639591,-480.0,0.00026479,2]
[386504011,1758324639601,-1500.0,0.00026516,2]
[386504012,1758324639612,-392.68942554,0.00026516,2]
[386504013,1758324639621,-269.0,0.00026578,2]
[386504014,1758324639631,-601.65,0.00026579,2]
[386504015,1758324639640,-2065.99,0.000266,7]
[386504017,1758324639650,-155.09,0.00026601,7]
[386504019,1758324639659,-155.09,0.00026603,7]
[386504021,1758324639669,-168.0,0.00026606,2]
[386504023,1758324639679,-151.0,0.0002661,2]
[386504024,1758324639688,-169.0,0.0002661,2]
[386504025,1758324639697,-253.25824784,0.0002661,2]
[386504026,1758324639706,-227.38158039,0.0002661,2]
[386504027,1758324639716,-151.0,0.0002661,2]
[386504028,1758324639725,-500.0,0.0002661,2]
[386504029,1758324639735,-151.0,0.0002661,2]
[386504030,1758324639744,-500.0,0.0002661,2]
[386504031,1758324639754,-500.0,0.0002661,2]
[386504032,1758324639763,-151.0,0.0002661,2]
[386504033,1758324639773,-157.0,0.0002661,2]
[386504034,1758324639783,-168.0,0.00026665,2]
[386504035,1758324639792,-155.09,0.00026701,7]
[386504036,1758324639802,-155.09,0.00026703,7]
[386504038,1758324639811,-2074.88,0.00026723,2]
[386504039,1758324639820,-168.0,0.00026746,2]
[386504041,1758324639832,-524.33,0.00026751,2]
[386504043,1758324639842,-480.0,0.00026752,2]
[386504045,1758324639851,-480.0,0.00026753,2]
[386504047,1758324639861,-150.0,0.00026764,2]
[386504049,1758324639871,-155.09,0.00026801,7]
[386504051,1758324639881,-860.0,0.00026804,2]
[386504053,1758324639890,-269.0,0.00026845,2]
[386504055,1758324639899,-271.3650232,0.00026884,2]
[386504057,1758324639909,-500.0,0.00026884,2]
[386504059,1758324639918,-293.97996017,0.00026884,2]
[386504061,1758324639928,-500.0,0.00026884,2]
[386504063,1758324639938,-248.58799711,0.00026884,2]
[386504065,1758324639947,-298.30891944,0.00026884,2]
[386504067,1758324639957,-155.09,0.00026901,7]
[386504069,1758324639966,-300.0,0.00026908,2]
[386504071,1758324639979,-444.90046794,0.00026938,2]
[386504073,1758324639988,-39326.64455179,0.00027,2]
[386504075,1758324639998,-155.09,0.00027001,7]
[386504077,1758324640007,-524.33,0.00027025,2]
[386504079,1758324640016,-479.29,0.00027026,2]
[386504081,1758324640025,-547.65167737,0.00027027,2]
[386504083,1758324640035,-269.0,0.00027028,2]
[386504085,1758324640044,-155.12731143,0.00027101,7]
[386504087,1758324640054,-269.0,0.00027156,2]
[386504089,1758324640063,-500.0,0.00027158,2]
[386504091,1758324640073,-500.0,0.00027158,2]
[386504093,1758324640086,-269.0,0.00027174,2]
[386504095,1758324640096,-250.0,0.00027177,2]
[386504097,1758324640105,-524.33,0.00027299,2]
[386504099,1758324640115,-960.0,0.00027352,2]
[386504101,1758324640124,-197.68813311,0.0002739,2]
[386504103,1758324640135,-150.0,0.0002739,2]
[386504105,1758324640144,-220.38918424,0.00027397,2]
[386504106,1758324640153,-160.6385961,0.00027397,2]
[386504107,1758324640163,-150.0,0.00027397,5]
[386504108,1758324640172,-500.0,0.00027432,2]
[386504109,1758324640181,-500.0,0.00027432,2]
[386504110,1758324640192,-269.0,0.00027436,2]
[386504111,1758324640202,-800.0,0.00027494,2]
[386504112,1758324640211,-45338.09010475,0.000275,2]
[386504113,1758324640220,-800.0,0.00027509,2]
[386504114,1758324640230,-800.0,0.00027532,2]
[386504115,1758324640239,-269.0,0.00027561,7]
[386504116,1758324640249,-500.0,0.00027565,2]
[386504117,1758324640258,-524.56191704,0.00027573,2]
[386504118,1758324640267,-500.0,0.00027617,2]
[386504119,1758324640277,-500.0,0.00027658,2]
[386504120,1758324640286,-500.0,0.00027706,2]
[386504121,1758324640295,-500.0,0.00027706,2]
[386504122,1758324640304,-500.0,0.00027742,2]
[386504123,1758324640314,-500.0,0.00027756,2]
[386504124,1758324640323,-500.0,0.00027756,2]
[386504125,1758324640334,-800.0,0.00027762,2]
[386504126,1758324640343,-157.86470853,0.00027763,2]
[386504127,1758324640352,-800.0,0.00027784,2]
[386504128,1758324640361,-800.0,0.00027851,2]
[386504129,1758324640371,-269.0,0.00027861,2]
[386504130,1758324640380,-500.0,0.00027863,2]
[386504131,1758324640389,-1112.0,0.00027887,2]
[386504132,1758324640398,-400.0,0.000279,2]
[386504133,1758324640407,-500.0,0.0002792,2]
[386504134,1758324640417,-250.0,0.00027945,5]
[386504135,1758324640426,-500.0,0.00027953,2]
[386504136,1758324640435,-500.0,0.00027968,2]
[386504137,1758324640444,-800.0,0.00027974,2]
[386504138,1758324640453,-846.24257555,0.00027975,2]
[386504139,1758324640462,-500.0,0.0002798,2]
[386504141,1758324640471,-500.0,0.0002798,2]
[386504143,1758324640483,-1299.999999,0.00028,2]
[386504145,1758324640493,-2141.76530093,0.00028,120]
[386504147,1758324640503,-159.14781448,0.00028,2]
[386504149,1758324640512,-1055.04,0.00028,2]
[386504151,1758324640522,-500.0,0.00028019,2]
[386504153,1758324640532,-846.24257555,0.00028075,2]
[386504155,1758324640541,-500.0,0.00028079,2]
[386504157,1758324640550,-500.0,0.00028082,2]
[386504159,1758324640560,-444.90046794,0.00028092,2]
[386504161,1758324640570,-800.0,0.00028116,2]
[386504163,1758324640581,-500.0,0.00028119,2]
[386504165,1758324640590,-800.0,0.00028137,2]
[386504167,1758324640600,-1055.04,0.0002814,2]
[386504169,1758324640610,-846.24257555,0.00028175,2]
[386504171,1758324640619,-800.0,0.00028179,2]
[386504173,1758324640628,-150.0,0.0002818,2]
[386504175,1758324640639,-600.0,0.00028222,2]
[386504177,1758324640648,-500.0,0.00028231,2]
[386504179,1758324640657,-500.0,0.00028254,2]
[386504181,1758324640666,-500.0,0.00028254,2]
[386504183,1758324640675,-846.24257555,0.00028275,2]
[386504185,1758324640686,-1055.04,0.0002828,2]
[386504187,1758324640695,-800.0,0.00028305,2]
[386504189,1758324640705,-500.0,0.00028354,2]
[386504191,1758324640714,-846.24257555,0.00028375,2]
[386504193,1758324640724,-153.0,0.000284,120]
[386504195,1758324640734,-1055.04,0.0002842,2]
[386504196,1758324640743,-800.0,0.00028422,2]
[386504198,1758324640753,-500.0,0.00028437,2]
[386504200,1758324640762,-500.0,0.0002847,2]
[386504202,1758324640772,-846.24257555,0.00028475,2]
[386504204,1758324640781,-350.0,0.00028493,5]
[386504206,1758324640791,-2065.99,0.000285,7]
[386504208,1758324640801,-890.40265332,0.00028502,2]
[386504210,1758324640810,-898.93599219,0.00028516,2]
[386504212,1758324640819,-500.0,0.00028528,2]
[386504214,1758324640831,-500.0,0.00028528,2]
[386504217,1758324640841,-800.0,0.00028532,2]
[386504219,1758324640851,-168.0,0.00028535,2]
[386504220,1758324640860,-1055.04,0.0002856,2]
[386504223,1758324640870,-693.38054487,0.00028573,2]
[386504224,1758324640879,-2773.52217948,0.00028573,2]
[386504226,1758324640889,-663.08371722,0.00028573,2]
[386504228,1758324640900,-403.18491163,0.00028573,2]
[386504230,1758324640910,-1611.12690687,0.00028573,2]
[386504233,1758324640921,-236.88890175,0.00028573,2]
[386504234,1758324640930,-946.60805138,0.00028573,2]
[386504237,1758324640941,-846.24257555,0.00028575,2]
[386504238,1758324640951,-500.0,0.00028576,7]
[386504240,1758324640961,-848.13460282,0.000286,7]
[386504242,1758324640972,-233.43972884,0.000286,7]
[386504244,1758324640982,-293.85068442,0.00028643,2]
[386504246,1758324640991,-846.24257555,0.00028675,2]
[386504248,1758324641000,-1055.04,0.000287,2]
[386504250,1758324641011,-500.0,0.00028701,2]
[386504252,1758324641020,-500.0,0.00028713,2]
[386504254,1758324641030,-500.0,0.00028727,2]
[386504256,1758324641040,-5000.0,0.00028737,19]
[386504258,1758324641051,-5000.0,0.00028737,22]
[386504260,1758324641061,-5000.0,0.00028737,20]
[386504262,1758324641072,-5000.0,0.00028737,16]
[386504264,1758324641083,-5000.0,0.00028737,18]
[386504266,1758324641093,-800.0,0.00028742,2]
[386504268,1758324641103,-500.0,0.00028772,2]
[386504270,1758324641112,-846.24257555,0.00028775,2]
[386504272,1758324641123,-500.0,0.00028802,2]
[386504274,1758324641138,-500.0,0.00028802,2]
[386504276,1758324641148,-1055.04,0.0002884,2]
[386504278,1758324641158,-800.0,0.00028892,2]
[386504280,1758324641167,-500.0,0.00028897,2]
[386504282,1758324641177,-1055.04,0.0002898,2]
[386504284,1758324641187,-878.07251311,0.00029,2]
[386504286,1758324641201,-3035.55346182,0.00029,60]
[386504288,1758324641210,-209.0,0.00029,2]
[386504290,1758324641220,-800.0,0.00029001,2]
[386504292,1758324641231,-500.0,0.0002903,2]
[386504294,1758324641240,-450.0,0.00029041,5]
[386504296,1758324641250,-166.35424728,0.00029041,120]
[386504298,1758324641259,-800.0,0.00029054,2]
[386504300,1758324641270,-977.0,0.00029069,2]
[386504302,1758324641280,-2158.0,0.00029069,2]
[386504304,1758324641289,-634.0,0.00029069,2]
[386504306,1758324641299,-410.0,0.00029069,2]
[386504308,1758324641309,-410.0,0.00029069,2]
[386504310,1758324641319,-162.58024941,0.00029073,30]
[386504312,1758324641330,-500.0,0.00029076,2]
[386504314,1758324641339,-500.0,0.00029076,2]
[386504316,1758324641349,-800.0,0.00029079,2]
[386504318,1758324641360,-168.0,0.00029089,2]
[386504320,1758324641370,-1055.04,0.0002912,30]
[386504322,1758324641379,-800.0,0.0002914,2]
[386504324,1758324641390,-1164.86558335,0.00029243,2]
[386504326,1758324641399,-6111.81689471,0.00029245,2]
[386504328,1758324641409,-444.90046794,0.00029245,2]
[386504330,1758324641419,-417.41746185,0.00029245,2]
[386504342,1758324641512,-1055.04,0.0002926,30]
[386504344,1758324641537,-500.0,0.00029264,2]
[386504346,1758324641547,-2000.0,0.000293,2]
[386504348,1758324641556,-2000.0,0.000293,2]
[386504350,1758324641566,-250.0,0.000293,10]
[386504352,1758324641577,-204.831726,0.000293,2]
[386504354,1758324641587,-500.0,0.00029301,2]
[386504357,1758324641597,-995.27524671,0.00029306,2]
[386504359,1758324641607,-800.0,0.00029337,2]
[386504361,1758324641617,-500.0,0.00029344,2]
[386504362,1758324641627,-5958.46156559,0.00029344,2]
[386504365,1758324641637,-1292.0,0.00029345,120]
[386504367,1758324641646,-151.0,0.00029345,7]
[386504368,1758324641657,-500.0,0.0002935,2]
[386504370,1758324641666,-500.0,0.0002935,2]
[386504372,1758324641676,-1435242.4513957,0.0002935,20]
[386504375,1758324641692,-325.76237576,0.0002935,20]
[386504384,1758324641777,-480.0,0.00021272,2]
[386504386,1758324641786,-480.0,0.00021546,2]
[386504388,1758324641796,-582.34,0.00022743,2]
[386504390,1758324641806,-582.34,0.00023017,2]
[386504392,1758324641815,-582.34,0.00023291,2]
[386504394,1758324641825,-582.34,0.00023565,2]
[386504396,1758324641835,-1119.37,0.00023839,2]
[386504398,1758324641844,-1119.37,0.00024113,2]
[386504400,1758324641854,-1119.37,0.00024387,2]
[386504402,1758324641863,-607.76,0.00024661,2]
[386504404,1758324641874,-511.61,0.00024661,2]
[386504406,1758324641884,-1119.37,0.00024935,2]
[386504408,1758324641894,-33394.01999999,0.0002935,20]
[386504851,1758324646291,-480.0,0.0002182,2]
[386504853,1758324646301,-480.0,0.00022094,2]
[386504855,1758324646310,-621.25,0.00022368,2]
[386504857,1758324646320,-217.99592756,0.00023,2]
[386504859,1758324646329,-582.34,0.00023839,2]
[386504861,1758324646340,-582.34,0.00024113,2]
[386504863,1758324646350,-582.34,0.00024387,2]
[386504865,1758324646359,-582.34,0.00024661,2]
[386504867,1758324646369,-582.34,0.00024935,2]
[386504869,1758324646378,-1119.37,0.00025209,2]
[386504871,1758324646388,-582.34,0.00025209,2]
[386504873,1758324646398,-1119.37,0.00025483,2]
[386504875,1758324646407,-582.34,0.00025483,2]
[386504877,1758324646417,-517.63407262,0.00025757,2]
[386504879,1758324646428,-601.73592738,0.00025757,2]
[386504881,1758324646438,-582.34,0.00025757,2]
[386504883,1758324646448,-1119.37,0.00026031,2]
[386504885,1758324646458,-1119.37,0.00026305,2]
[386504887,1758324646467,-1119.37,0.00026579,2]
[386504889,1758324646477,-525.85,0.00026605,7]
[386504891,1758324646487,-525.85,0.00026805,7]
[386504893,1758324646497,-1119.37,0.00026853,2]
[386504895,1758324646507,-525.85,0.00026905,7]
[386504897,1758324646517,-525.85,0.00027005,7]
[386504899,1758324646527,-525.85,0.00027105,7]
[386504901,1758324646537,-1119.37,0.00027127,2]
[386504903,1758324646547,-525.85,0.00027205,7]
[386504905,1758324646556,-525.85,0.00027305,7]
[386504907,1758324646566,-525.85,0.00027505,15]
[386504909,1758324646575,-525.85,0.00027705,15]
[386504912,1758324646586,-525.85,0.00028005,15]
[386504914,1758324646596,-525.85,0.00028105,15]
[386504915,1758324646605,-525.85,0.00028405,15]
[386504917,1758324646615,-525.85,0.00028505,15]
[386504919,1758324646624,-525.85,0.00028605,15]
[386504922,1758324646634,-301.40746278,0.00028705,15]
[386504925,1758324646654,-224.44253722,0.00028705,15]
[386504926,1758324646663,-525.85,0.00028905,15]
[386504928,1758324646672,-525.85,0.00029105,15]
[386504930,1758324646682,-525.85,0.00029205,15]
[386504932,1758324646691,-525.85,0.00029305,15]
[386504934,1758324646701,-11058.38748504,0.0002935,20]
[386505921,1758324870370,157.0,0.00024,120]
[386505922,1758324871794,157.0,0.000264,120]
[386505946,1758325061525,-181.0,0.00021098,2]
[386505947,1758325061558,-300.0,0.00021098,2]
[386505948,1758325061592,-1200.0,0.00021098,2]
[386505949,1758325061624,-1200.0,0.00021098,2]
[386505950,1758325061723,-4238.01,0.00021099,2]
[386505951,1758325061738,-10000.01,0.00021099,2]
[386505952,1758325061767,-10000.01,0.00021099,2]
[386505953,1758325061913,-10000.01,0.00021099,2]
[386505954,1758325062033,-10000.01,0.00021099,2]
[386505955,1758325071535,-260.85817605,0.00020999,2]
[386505956,1758325071567,-3818.11562504,0.00021099,2]
[386505957,1758325071606,-1842.06239782,0.00021099,2]
[386505960,1758325179575,212.840238,0.00020173,2]
[386505963,1758325347351,268.48876663,0.000199,2]
[386505975,1758325506271,500.0,0.000199,2]
[386505992,1758325540654,243.9293475,0.000199,2]
[386505993,1758325551432,500.0,0.000199,2]
[386505995,1758325562769,500.0,0.000199,2]
[386505996,1758325574273,500.0,0.000199,2]
[386506004,1758325609369,211.08365498,0.000199,2]
[386506013,1758325625126,-339.47602102,0.00021068,2]
[386506014,1758325625148,-300.0,0.00021098,2]
[386506015,1758325625170,-231.0664712,0.00021099,2]
[386506019,1758325750941,219.28654432,0.000199,2]
[386506021,1758325801409,150.0,0.00020265,2]
[386506072,1758325832673,-323.47923339,0.00021066,2]
[386506073,1758325832682,-480.0,0.00021099,2]
[386506075,1758325832692,-480.0,0.00021099,2]
[386506077,1758325832702,-300.0,0.00021165,2]
[386506079,1758325832711,-291.2579642,0.00021166,2]
[386506081,1758325832721,-229.47999467,0.00021166,2]
[386506083,1758325832730,-500.0,0.00021166,2]
[386506085,1758325832740,-500.0,0.00021166,2]
[386506087,1758325832749,-500.0,0.00021166,2]
[386506089,1758325832758,-500.0,0.00021166,2]
[386506091,1758325832767,-500.0,0.00021166,2]
[386506093,1758325832776,-500.0,0.00021166,2]
[386506094,1758325832785,-500.0,0.00021166,2]
[386506097,1758325832795,-500.0,0.00021166,2]
[386506098,1758325832804,-201.63559965,0.00021166,2]
[386506100,1758325832813,-500.0,0.00021166,2]
[386506102,1758325832823,-500.0,0.00021166,2]
[386506104,1758325832832,-500.0,0.00021166,2]
[386506106,1758325832844,-500.0,0.00021166,2]
[386506108,1758325832853,-500.0,0.00021166,2]
[386506110,1758325832862,-500.0,0.00021166,2]
[386506112,1758325832872,-500.0,0.00021166,2]
[386506114,1758325832882,-500.0,0.00021166,2]
[386506116,1758325832892,-500.0,0.00021166,2]
[386506118,1758325832901,-500.0,0.00021166,2]
[386506120,1758325832910,-500.0,0.00021166,2]
[386506122,1758325832919,-500.0,0.00021166,2]
[386506124,1758325832930,-635.43159711,0.00021166,2]
[386506125,1758325832939,-500.0,0.00021166,2]
[386506127,1758325832948,-500.0,0.00021166,2]
[386506129,1758325832957,-500.0,0.00021166,2]
[386506131,1758325832966,-500.0,0.00021166,2]
[386506133,1758325832975,-500.0,0.00021166,2]
[386506135,1758325832985,-500.0,0.00021166,2]
[386506137,1758325832994,-500.0,0.00021166,2]
[386506139,1758325833004,-500.0,0.00021166,2]
[386506141,1758325833014,-500.0,0.00021166,2]
[386506143,1758325833024,-500.0,0.00021166,2]
[386506145,1758325833033,-500.0,0.00021166,2]
[386506147,1758325833043,-500.0,0.00021166,2]
[386506149,1758325833053,-500.0,0.00021166,2]
[386506151,1758325833062,-500.0,0.00021166,2]
[386506153,1758325833072,-500.0,0.00021166,2]
[386506154,1758325833081,-169.14837056,0.00021166,2]
[386506156,1758325833091,-500.0,0.00021166,2]
[386506158,1758325833102,-500.0,0.00021166,2]
[386506160,1758325833111,-500.0,0.00021166,2]
[386506162,1758325833121,-500.0,0.00021166,2]
[386506164,1758325833131,-500.0,0.00021166,2]
[386506166,1758325833141,-500.0,0.00021166,2]
[386506168,1758325833151,-500.0,0.00021166,2]
[386506170,1758325833161,-500.0,0.00021166,2]
[386506172,1758325833172,-500.0,0.00021166,2]
[386506174,1758325833182,-500.0,0.00021166,2]
[386506176,1758325833192,-500.0,0.00021166,2]
[386506178,1758325833202,-500.0,0.00021166,2]
[386506179,1758325833212,-500.0,0.00021166,2]
[386506180,1758325833222,-500.0,0.00021166,2]
[386506181,1758325833232,-500.0,0.00021166,2]
[386506182,1758325833242,-500.0,0.00021166,2]
[386506183,1758325833251,-500.0,0.00021166,2]
[386506184,1758325833261,-500.0,0.00021166,2]
[386506185,1758325833271,-500.0,0.00021166,2]
[386506186,1758325833280,-500.0,0.00021166,2]
[386506187,1758325833290,-500.0,0.00021166,2]
[386506188,1758325833299,-500.0,0.00021166,2]
[386506189,1758325833309,-496.24393964,0.00021166,2]
[386506190,1758325833319,-500.0,0.00021166,2]
[386506191,1758325833329,-500.0,0.00021166,2]
[386506192,1758325833339,-500.0,0.00021166,2]
[386506193,1758325833349,-500.0,0.00021166,2]
[386506194,1758325833358,-500.0,0.00021166,2]
[386506195,1758325833367,-500.0,0.00021166,2]
[386506196,1758325833377,-500.0,0.00021166,2]
[386506197,1758325833387,-500.0,0.00021166,2]
[386506198,1758325833396,-499.99999999,0.00021166,2]
[386506199,1758325833405,-500.0,0.00021166,2]
[386506200,1758325833415,-500.0,0.00021166,2]
[386506201,1758325833425,-500.0,0.00021166,2]
[386506202,1758325833435,-500.0,0.00021166,2]
[386506203,1758325833445,-500.0,0.00021166,2]
[386506204,1758325833456,-500.0,0.00021166,2]
[386506205,1758325833465,-500.0,0.00021166,2]
[386506206,1758325833474,-500.0,0.00021166,2]
[386506207,1758325833483,-500.0,0.00021166,2]
[386506208,1758325833493,-500.0,0.00021166,2]
[386506209,1758325833502,-500.0,0.00021166,2]
[386506210,1758325833512,-500.0,0.00021166,2]
[386506211,1758325833522,-500.0,0.00021166,2]
[386506212,1758325833531,-500.0,0.00021166,2]
[386506213,1758325833540,-375.60840584,0.00021166,2]
[386506214,1758325833550,-500.0,0.00021166,2]
[386506215,1758325833559,-500.0,0.00021166,2]
[386506216,1758325833568,-500.0,0.00021166,2]
[386506217,1758325833578,-500.0,0.00021166,2]
[386506218,1758325833587,-500.0,0.00021166,2]
[386506219,1758325833596,-500.0,0.00021166,2]
[386506220,1758325833606,-500.0,0.00021166,2]
[386506221,1758325833616,-500.0,0.00021166,2]
[386506222,1758325833626,-500.0,0.00021166,2]
[386506223,1758325833635,-500.0,0.00021166,2]
[386506224,1758325833645,-500.0,0.00021166,2]
[386506225,1758325833654,-500.0,0.00021166,2]
[386506226,1758325833663,-500.0,0.00021166,2]
[386506227,1758325833673,-500.0,0.00021166,2]
[386506228,1758325833682,-500.0,0.00021166,2]
[386506229,1758325833691,-500.0,0.00021166,2]
[386506230,1758325833700,-500.0,0.00021166,2]
[386506231,1758325833710,-600.0,0.00021166,2]
[386506232,1758325833719,-480.0,0.00021166,2]
[386506233,1758325833729,-601.41,0.00021166,2]
[386506234,1758325833738,-480.0,0.00021166,2]
[386506235,1758325833747,-480.0,0.00021166,2]
[386506236,1758325833757,-480.0,0.00021166,2]
[386506237,1758325833766,-480.0,0.00021168,2]
[386506238,1758325833776,-446.54954069,0.00021168,2]
[386506239,1758325833786,-547.7861414,0.00021168,2]
[386506240,1758325833795,-480.0,0.00021168,2]
[386506241,1758325833805,-480.0,0.00021168,2]
[386506242,1758325833814,-480.0,0.00021168,2]
[386506243,1758325833824,-480.0,0.00021168,2]
[386506244,1758325833833,-480.0,0.00021168,2]
[386506245,1758325833845,-270.31982368,0.00021168,2]
[386506246,1758325833854,-480.0,0.00021168,2]
[386506247,1758325833864,-480.0,0.00021168,2]
[386506248,1758325833873,-480.0,0.00021168,2]
[386506249,1758325833885,-480.0,0.00021168,2]
[386506250,1758325833894,-480.0,0.00021168,2]
[386506251,1758325833904,-480.0,0.00021168,2]
[386506252,1758325833914,-480.0,0.00021168,2]
[386506253,1758325833925,-480.0,0.00021169,2]
[386506254,1758325833935,-480.0,0.00021169,2]
[386506255,1758325833944,-523.69,0.00021169,2]
[386506256,1758325833954,-480.0,0.00021169,2]
[386506257,1758325833964,-480.0,0.00021169,2]
[386506258,1758325833973,-601.03,0.00021169,2]
[386506259,1758325833982,-480.0,0.00021169,2]
[386506260,1758325833992,-480.0,0.00021169,2]
[386506261,1758325834001,-480.0,0.00021169,2]
[386506262,1758325834012,-480.0,0.00021169,2]
[386506263,1758325834023,-480.0,0.00021169,2]
[386506264,1758325834033,-480.0,0.00021169,2]
[386506265,1758325834043,-480.0,0.00021169,2]
[386506266,1758325834052,-480.0,0.00021169,2]
[386506267,1758325834062,-480.0,0.00021169,2]
[386506268,1758325834071,-480.0,0.00021169,2]
[386506269,1758325834081,-480.0,0.00021169,2]
[386506270,1758325834091,-480.0,0.00021169,2]
[386506271,1758325834100,-480.0,0.0002117,2]
[386506272,1758325834110,-480.0,0.0002117,2]
[386506273,1758325834120,-571.76,0.0002117,2]
[386506274,1758325834129,-215.50172759,0.0002117,2]
[386506275,1758325834138,-480.0,0.0002117,2]
[386506276,1758325834148,-480.0,0.0002117,2]
[386506277,1758325834157,-480.0,0.0002117,2]
[386506278,1758325834166,-601.06,0.0002117,2]
[386506279,1758325834176,-480.0,0.0002117,2]
[386506280,1758325834185,-480.0,0.0002117,2]
[386506281,1758325834195,-480.0,0.0002117,2]
[386506282,1758325834204,-480.0,0.0002117,2]
[386506283,1758325834214,-480.0,0.0002117,2]
[386506284,1758325834223,-509.55,0.0002117,2]
[386506285,1758325834233,-480.0,0.0002117,2]
[386506286,1758325834243,-480.0,0.0002117,2]
[386506287,1758325834252,-289.1509064,0.0002117,2]
[386506288,1758325834261,-480.0,0.0002117,2]
[386506289,1758325834271,-480.0,0.0002117,2]
[386506290,1758325834281,-480.0,0.0002117,2]
[386506291,1758325834291,-621.33,0.0002117,2]
[386506292,1758325834300,-480.0,0.0002117,2]
[386506293,1758325834309,-480.0,0.0002117,2]
[386506294,1758325834319,-480.0,0.0002117,2]
[386506295,1758325834328,-480.0,0.0002117,2]
[386506296,1758325834338,-480.0,0.0002117,2]
[386506297,1758325834347,-480.0,0.0002117,2]
[386506298,1758325834356,-480.0,0.0002117,2]
[386506299,1758325834470,-480.0,0.0002117,2]
[386506300,1758325834480,-480.0,0.0002117,2]
[386506301,1758325834490,-480.0,0.0002117,2]
[386506302,1758325834499,-480.90646828,0.0002117,2]
[386506303,1758325834509,-480.7872714,0.0002117,2]
[386506304,1758325834520,-480.0,0.0002117,2]
[386506305,1758325834530,-480.0,0.0002117,2]
[386506306,1758325834539,-480.0,0.0002117,2]
[386506307,1758325834548,-480.0,0.0002117,2]
[386506308,1758325834557,-480.0,0.0002117,2]
[386506309,1758325834566,-480.0,0.0002117,2]
[386506310,1758325834575,-570.03,0.0002117,2]
[386506311,1758325834584,-485.89,0.0002117,2]
[386506312,1758325834593,-480.0,0.0002117,2]
[386506313,1758325834602,-500.0,0.00021172,2]
[386506314,1758325834610,-480.0,0.00021173,2]
[386506315,1758325834619,-480.0,0.00021173,2]
[386506316,1758325834628,-480.0,0.00021173,2]
[386506317,1758325834637,-480.0,0.00021173,2]
[386506318,1758325834646,-480.0,0.00021173,2]
[386506319,1758325834655,-358.16,0.00021173,2]
[386506320,1758325834665,-480.0,0.00021173,2]
[386506321,1758325834674,-480.0,0.00021173,2]
[386506322,1758325834683,-480.0,0.00021173,2]
[386506323,1758325834692,-520.1,0.00021173,2]
[386506324,1758325834702,-480.0,0.00021173,2]
[386506325,1758325834712,-480.0,0.00021173,2]
[386506326,1758325834721,-480.0,0.00021173,2]
[386506327,1758325834730,-480.0,0.00021173,2]
[386506328,1758325834739,-480.0,0.00021173,2]